bitfinex/quotes_SOLUSD_20250806
["timestamp","ask_amount","ask_price","bid_price","bid_amount"]
[1754448498903,26.03,162.96,162.95,0.67]
[1754448499104,30.14072746,162.96,162.95,0.67]
[1754448499707,38.61180364,162.96,162.93,0.73]
[1754448499920,4.11072746,162.95,162.93,0.73]
[1754448500206,26.03,162.96,162.94,0.67]
[1754448500613,34.50107618,162.96,162.93,0.06]
[1754448500813,4.1117554,162.95,162.93,0.73]
[1754448501002,12.58283158,162.95,162.93,0.73]
[1754448501731,4.1117554,162.95,162.94,0.67]
[1754448502623,34.50107618,162.96,162.94,0.67]
[1754448502624,0.03,162.96,162.94,9.14107618]
[1754448502928,0.03,162.96,162.95,9.14107618]
[1754448504131,0.03,162.96,162.95,15.27792797]
[1754448504436,0.03,162.96,162.95,6.80685179]
[1754448505537,0.03,162.96,162.95,15.27792797]
[1754448507419,4.14337129,162.98,162.95,30.76221902]
[1754448507610,4.14337129,162.98,162.97,8.47107618]
[1754448507816,0.03,162.98,162.97,8.47107618]
[1754448508113,0.03,162.98,162.97,9.14107618]
[1754448509037,0.03,162.98,162.97,15.27717484]
[1754448516928,0.03,162.98,162.97,14.60717484]
[1754448517123,0.03,162.98,162.97,15.26717484]
[1754448517329,0.03,162.98,162.97,104.36717484]
[1754448517531,0.03,162.99,162.98,0.14216157]
[1754448517738,0.03,162.99,162.98,9.27323775]
[1754448518928,0.03,162.99,162.98,15.40895992]
[1754448520930,0.03,162.99,162.98,6.13572217]
[1754448521147,0.03,162.99,162.98,14.60679835]
[1754448521344,0.03,162.99,162.97,89.1]
[1754448521345,0.7,162.99,162.94,0.66]
[1754448521536,8.50107618,162.99,162.95,57.72792797]
[1754448521734,0.67,162.98,162.95,57.72792797]
[1754448521934,0.03,162.99,162.95,57.72792797]
[1754448522231,0.67,162.98,162.95,57.72792797]
[1754448522645,0.03,162.99,162.96,8.47107618]
[1754448522839,0.03,162.99,162.97,8.47107618]
[1754448523036,0.03,162.99,162.98,51.59107618]
[1754448523240,0.03,162.99,162.98,52.25107618]
[1754448524451,0.03,162.99,162.98,58.38679835]
[1754448525451,0.7,162.99,162.96,8.47107618]
[1754448525655,0.7,162.99,162.97,43.14]
[1754448525656,0.67,162.98,162.97,43.14]
[1754448526274,0.03,162.99,162.97,43.14]
[1754448526555,0.67,162.98,162.97,43.14]
[1754448526852,0.03,162.99,162.97,43.14]
[1754448527155,0.7,162.99,162.97,43.14]
[1754448527460,0.7,162.99,162.97,49.27603545]
[1754448527957,0.7,162.99,162.97,43.14]
[1754448528856,0.03,162.99,162.97,43.14]
[1754448529358,0.03,162.99,162.98,15.26679835]
[1754448532047,0.03,162.99,162.98,104.36679835]
[1754448535364,1e-08,162.99,162.98,104.50895992]
[1754448538583,1e-08,162.99,162.98,105.12253213]
[1754448540057,1e-08,163.0,162.98,120.2287477]
[1754448540244,1e-08,163.0,162.99,52.35323775]
[1754448540445,1e-08,163.0,162.99,58.48858347]
[1754448543162,1e-08,163.0,162.99,57.82858347]
[1754448543974,1e-08,163.0,162.99,147.59858347]
[1754448545768,1e-08,163.0,162.99,173.59858347]
[1754448547171,0.66000001,163.0,162.99,172.92858347]
[1754448547350,1e-08,163.0,162.99,172.92858347]
[1754448547793,0.66000001,163.0,162.99,6.13534572]
[1754448548081,0.66000001,163.0,162.99,49.23534572]
[1754448548284,0.66000001,163.0,162.99,57.7064219]
[1754448549100,1e-08,163.0,162.99,57.7064219]
[1754448549602,1e-08,163.0,162.99,58.3764219]
[1754448549957,1e-08,163.0,162.99,57.7064219]
[1754448550157,0.66000001,163.0,162.99,57.7064219]
[1754448550459,4.78584785,163.0,162.97,89.16]
[1754448550784,0.66000001,163.0,162.98,43.1]
[1754448550993,0.66,162.99,162.98,43.1]
[1754448551169,0.66,162.99,162.98,49.23572217]
[1754448552002,0.66,162.99,162.98,43.1]
[1754448552203,4.78801949,162.99,162.98,43.1]
[1754448552514,4.12801949,162.99,162.98,57.70679835]
[1754448553361,1e-08,163.0,162.98,57.70679835]
[1754448553560,0.66000001,163.0,162.98,57.70679835]
[1754448556712,1e-08,163.0,162.99,9.14107618]
[1754448556883,1e-08,163.0,162.99,8.47107618]
[1754448557082,4.12833046,163.0,162.99,8.47107618]
[1754448557784,4.12833046,163.0,162.99,14.6064219]
[1754448558606,4.12829967,163.0,162.99,14.6064219]
[1754448559293,1e-08,163.0,162.99,15.2764219]
[1754448559807,1e-08,163.0,162.99,14.6064219]
[1754448560179,4.78840485,163.0,162.97,6.19576576]
[1754448560377,4.78868662,162.99,162.98,43.06]
[1754448564409,4.12868662,162.99,162.98,49.19572217]
[1754448564708,4.12868662,162.99,162.98,57.66679835]
[1754448566181,1e-08,163.0,162.98,58.33679835]
[1754448566617,1e-08,163.0,162.98,49.19572217]
[1754448566910,0.66000001,163.0,162.98,49.19572217]
[1754448567117,0.66000001,163.0,162.98,43.06]
[1754448567118,4.78812323,162.99,162.98,43.06]
[1754448567282,4.78812323,162.99,162.98,43.18]
[1754448568509,4.12812323,162.99,162.98,58.45679835]
[1754448568695,4.12812323,162.99,162.98,57.78679835]
[1754448569904,4.12812323,162.99,162.98,58.45679835]
[1754448570788,4.78812323,162.99,162.98,43.18]
[1754448572786,4.12812323,162.99,162.98,43.18]
[1754448573019,4.12812323,162.99,162.98,49.31572217]
[1754448573600,4.12812323,162.99,162.98,43.18]
[1754448575424,4.12812323,162.99,162.98,49.31572217]
[1754448575719,4.12812323,162.99,162.98,49.98572217]
[1754448576215,4.12812323,162.99,162.98,58.45679835]
[1754448576410,1e-08,163.0,162.98,58.45679835]
[1754448576617,1e-08,163.0,162.99,9.14107618]
[1754448576918,4.12905038,163.0,162.99,9.14107618]
[1754448577222,4.12905038,163.0,162.99,15.2764219]
[1754448578418,1e-08,163.0,162.99,9.14107618]
[1754448578612,4.78885176,163.0,162.98,89.1]
[1754448578789,4.12885175,162.99,162.98,89.1]
[1754448579098,4.12885175,162.99,162.98,132.24]
[1754448581304,4.78885175,162.99,162.98,132.24]
[1754448582533,4.78885175,162.99,162.98,43.14]
[1754448584002,4.12885175,162.99,162.98,43.14]
[1754448584732,4.12885175,162.99,162.97,0.06]
[1754448584733,13.25992793,162.99,162.97,0.06]
[1754448584911,13.25992793,162.98,162.97,0.06]
[1754448585116,13.25992793,162.98,162.97,43.16]
[1754448586601,13.25992793,162.98,162.97,0.06]
[1754448586602,18.7356501,162.98,162.97,0.06]
[1754448586798,19.3956501,162.98,162.97,0.06]
[1754448587628,13.25992793,162.98,162.97,0.06]
[1754448590330,19.3956501,162.98,162.97,0.06]
[1754448590717,13.25992793,162.98,162.97,0.06]
[1754448591810,4.78885175,162.98,162.97,0.06]
[1754448592129,13.25992793,162.98,162.97,0.06]
[1754448592432,12.59992793,162.98,162.97,0.06]
[1754448592740,4.12885175,162.98,162.97,0.73]
[1754448593032,4.12885175,162.98,162.97,43.79]
[1754448594027,4.12885175,162.98,162.97,43.12]
[1754448596904,4.12885175,162.98,162.97,43.79]
[1754448597830,4.12885175,162.98,162.97,49.92609866]
[1754448598533,4.12885175,162.98,162.97,43.79]
[1754448598832,4.12885175,162.99,162.97,58.39717484]
[1754448599036,1e-08,163.0,162.98,9.14107618]
[1754448599208,1e-08,163.0,162.99,51.59107618]
[1754448599406,1e-08,163.0,162.99,52.26107618]
[1754448599407,4.12971828,163.0,162.99,52.26107618]
[1754448600504,1e-08,163.0,162.99,58.3964219]
[1754448600921,4.12931654,163.0,162.99,58.3964219]
[1754448601206,1e-08,163.0,162.99,58.3964219]
[1754448601414,4.1293439,163.0,162.99,49.25534572]
[1754448601815,1e-08,163.0,162.99,58.3964219]
[1754448602443,1e-08,163.0,162.99,49.92534572]
[1754448602844,4.12920448,163.0,162.99,58.3964219]
[1754448603141,1e-08,163.0,162.99,58.3964219]
[1754448603351,4.12935829,163.0,162.99,43.12]
[1754448603514,4.12935829,163.0,162.99,58.3964219]
[1754448603715,4.12935829,163.0,162.99,58.53858347]
[1754448604125,1e-08,163.0,162.99,58.53858347]
[1754448606542,1e-08,163.01,162.99,58.53858347]
[1754448606743,1e-08,163.01,163.0,18.39781086]
[1754448607731,1e-08,163.01,163.0,9.92673468]
[1754448608336,1e-08,163.01,163.0,16.061704]
[1754448610330,1e-08,163.01,163.0,15.44820707]
[1754448611344,1e-08,163.01,163.0,16.061704]
[1754448611849,1e-08,163.01,163.0,105.161704]
[1754448614038,13.9162103,163.06,163.0,128.97020349]
[1754448614242,13.9162103,163.06,163.05,8.47107618]
[1754448614550,13.9162103,163.06,163.05,140.67107618]
[1754448615539,14.5762103,163.06,163.05,146.80416418]
[1754448616771,14.5762103,163.06,163.05,132.2]
[1754448617065,14.5762103,163.06,163.05,138.333088]
[1754448617957,13.9162103,163.06,163.05,57.70416418]
[1754448620363,14.5762103,163.06,163.05,57.70416418]
[1754448620543,14.5762103,163.06,163.05,49.233088]
[1754448622063,14.5762103,163.06,163.04,89.1]
[1754448622265,13.9162103,163.06,163.05,43.06]
[1754448622665,22.38728648,163.06,163.05,43.06]
[1754448622844,27.15795163,163.06,163.05,43.06]
[1754448623044,33.29066913,163.06,163.04,43.06]
[1754448623358,13.24158199,163.05,163.04,43.06]
[1754448623871,13.24158199,163.05,163.03,43.06]
[1754448624067,0.66,163.04,163.03,43.06]
[1754448627271,9.13107618,163.04,163.03,43.06]
[1754448627775,9.13107618,163.04,163.02,43.1]
[1754448627975,9.13107618,163.03,163.02,43.1]
[1754448628271,9.13107618,163.03,163.02,0.06]
[1754448628472,12.58158199,163.04,163.02,0.06]
[1754448628670,4.11050581,163.04,163.02,0.06]
[1754448628974,13.24158199,163.05,163.02,0.06]
[1754448629181,9.13107618,163.04,163.02,0.06]
[1754448629385,9.13107618,163.04,163.03,43.04]
[1754448629574,9.13107618,163.04,163.02,43.1]
[1754448629780,0.66,163.03,163.02,43.1]
[1754448630350,9.13107618,163.03,163.02,43.1]
[1754448630568,13.24158199,163.03,163.02,0.06]
[1754448631077,28.48995913,163.03,163.02,0.06]
[1754448631282,19.35888295,163.03,163.02,0.06]
[1754448631455,4.11050581,163.03,163.02,0.06]
[1754448631651,4.11050581,163.04,163.02,0.06]
[1754448632175,4.11050581,163.03,163.02,0.06]
[1754448632358,4.11050581,163.04,163.02,8.53107618]
[1754448632675,4.1138361,163.05,163.03,52.31107618]
[1754448633865,9.13107618,163.04,163.03,43.14]
[1754448634176,13.24491228,163.04,163.02,0.06]
[1754448634365,4.7738361,163.03,163.02,0.06]
[1754448635095,0.66,163.03,163.02,0.06]
[1754448636190,4.1138361,163.03,163.02,0.06]
[1754448637565,4.1138361,163.03,163.02,0.71]
[1754448637779,4.1138361,163.05,163.02,9.18107618]
[1754448637978,4.1138361,163.04,163.03,43.12]
[1754448640377,13.24491228,163.04,163.03,43.12]
[1754448641066,4.7738361,163.04,163.03,43.12]
[1754448643665,4.1138361,163.04,163.03,43.12]
[1754448646876,9.92169603,163.04,163.03,43.12]
[1754448647078,18.42277221,163.04,163.02,0.06]
[1754448647388,4.7738361,163.03,163.02,0.06]
[1754448647886,4.1138361,163.03,163.02,0.06]
[1754448649861,4.1138361,163.03,163.02,0.71]
[1754448650067,4.1138361,163.03,163.02,9.18107618]
[1754448650760,4.1138361,163.03,163.02,0.71]
[1754448651659,4.1138361,163.03,163.02,0.06]
[1754448651986,4.1138361,163.03,163.02,0.71]
[1754448652193,4.1138361,163.03,163.02,0.06]
[1754448653576,4.1138361,163.03,163.02,0.71]
[1754448653974,4.1138361,163.03,163.02,0.06]
[1754448656679,4.1138361,163.03,163.02,0.71]
[1754448657290,4.1138361,163.03,163.02,0.06]
[1754448658396,4.1138361,163.03,163.02,0.71]
[1754448660796,4.1138361,163.03,163.02,0.06]
[1754448662108,4.7738361,163.03,163.02,0.06]
[1754448663673,18.45277221,163.03,163.02,0.06]
[1754448663869,41.10621557,163.01,163.0,0.06]
[1754448664066,4.1138361,163.01,163.0,0.06]
[1754448664311,4.1138361,163.01,163.0,43.7]
[1754448664675,4.1138361,163.01,163.0,44.36]
[1754448664876,4.1138361,163.01,163.0,52.83107618]
[1754448665186,4.1138361,163.01,163.0,58.9660455]
[1754448665774,0.03,163.04,163.0,67.43712168]
[1754448665978,4.13288047,163.03,163.01,0.66]
[1754448666199,0.03,163.04,163.02,52.23107618]
[1754448666505,0.03,163.04,163.03,8.47107618]
[1754448666707,4.16370461,163.04,163.03,8.47107618]
[1754448666886,4.16370461,163.04,163.03,9.13107618]
[1754448667203,4.16370461,163.04,163.03,15.26491657]
[1754448667797,0.03,163.04,163.03,15.26491657]
[1754448668311,4.62163612,163.04,163.03,15.26491657]
[1754448672107,0.03,163.04,163.03,15.26491657]
[1754448672283,4.61713239,163.04,163.03,15.26491657]
[1754448672627,0.03,163.04,163.03,15.26491657]
[1754448672809,4.61655746,163.04,163.03,15.26491657]
[1754448674006,8.74434594,163.04,163.03,15.26491657]
[1754448675179,8.74350094,163.04,163.03,15.26491657]
[1754448676424,8.74350094,163.04,163.03,6.79384039]
[1754448676588,8.74350094,163.04,163.03,14.60491657]
[1754448677705,24.06805562,163.04,163.0,0.06]
[1754448678021,9.43350094,163.03,163.01,43.64]
[1754448678198,8.71350094,163.02,163.01,43.64]
[1754448678387,9.43350094,163.02,163.01,43.64]
[1754448678705,9.43350094,163.02,163.0,0.06]
[1754448678889,17.90457712,163.01,163.0,0.06]
[1754448679395,8.71350094,163.01,163.0,15.3260455]
[1754448681217,8.71473893,163.01,163.0,15.3260455]
[1754448681604,4.58695045,163.01,163.0,15.3260455]
[1754448682207,0.03,163.04,163.0,15.3260455]
[1754448682412,8.71479468,163.03,163.01,44.32]
[1754448682609,4.58684752,163.02,163.01,49.79459296]
[1754448683122,4.58684752,163.02,163.01,50.45459296]
[1754448683725,4.58684752,163.02,163.01,58.92566914]
[1754448685725,4.58684752,163.02,163.01,148.02566914]
[1754448685924,4.58599382,163.02,163.01,148.02566914]
[1754448687530,0.03,163.04,163.01,148.02566914]
[1754448687714,4.58543155,163.03,163.02,0.66]
[1754448687901,4.58543155,163.03,163.02,9.13107618]
[1754448689218,0.03,163.04,163.02,9.13107618]
[1754448689421,0.03,163.04,163.03,52.05107618]
[1754448689603,4.61433985,163.04,163.03,58.84491657]
[1754448689925,4.61433985,163.04,163.03,58.18491657]
[1754448690223,4.61433985,163.04,163.03,43.58]
[1754448690224,4.8764834,163.04,163.03,43.58]
[1754448690402,9.46132397,163.04,163.03,43.58]
[1754448690601,8.74132397,163.04,163.03,49.71384039]
[1754448690802,4.61484057,163.04,163.03,58.18491657]
[1754448691007,4.61484057,163.04,163.03,58.84491657]
[1754448691224,4.61484057,163.04,163.03,147.94491657]
[1754448692312,0.03,163.04,163.03,148.08707814]
[1754448703249,0.03,163.08,163.07,0.14216157]
[1754448703550,4.60987651,163.08,163.07,142.46647132]
[1754448703750,4.60987651,163.08,163.07,141.85323774]
[1754448704349,4.60987651,163.08,163.07,147.98557354]
[1754448704950,4.60987651,163.08,163.07,139.51449736]
[1754448705160,4.60923228,163.08,163.07,147.98557354]
[1754448705843,0.03,163.1,163.09,0.14216157]
[1754448706048,4.60808654,163.1,163.09,53.42639612]
[1754448706250,0.2,163.13,163.09,53.42639612]
[1754448706457,0.2,163.13,163.12,8.47107618]
[1754448706667,0.2,163.13,163.12,51.95107618]
[1754448708470,0.2,163.13,163.12,58.08153228]
[1754448709669,0.2,163.13,163.12,147.18153227]
[1754448712680,0.2,163.13,163.12,147.90153227]
[1754448713982,0.2,163.13,163.12,148.04369384]
[1754448714192,0.2,163.13,163.12,58.94369385]
[1754448718192,0.2,163.13,163.12,61.39745585]
[1754448718378,0.03,163.14,163.13,0.14216157]
[1754448718578,0.03,163.14,163.13,9.33323775]
[1754448720293,0.03,163.14,163.13,15.46331805]
[1754448721799,0.03,163.14,163.13,14.74331805]
[1754448722805,0.71,163.14,163.13,49.4700803]
[1754448723009,0.71,163.14,163.13,57.94115648]
[1754448723303,0.71,163.14,163.13,14.60115648]
[1754448723491,0.71,163.14,163.13,51.81107618]
[1754448724081,0.03,163.14,163.13,51.81107618]
[1754448724285,0.03,163.14,163.13,147.04115647]
[1754448724485,0.03,163.14,163.13,147.73115647]
[1754448724897,0.74,163.14,163.13,95.23008029]
[1754448725108,0.74,163.14,163.13,147.04115647]
[1754448725415,0.03,163.14,163.13,147.04115647]
[1754448727699,0.03,163.14,163.13,138.57008029]
[1754448727901,0.74,163.14,163.13,138.57008029]
[1754448728208,0.74,163.14,163.13,147.04115647]
[1754448729187,0.74,163.14,163.13,132.43999999]
[1754448729393,0.74,163.14,163.1,89.15999999]
[1754448729584,8.47107618,163.13,163.11,43.3]
[1754448729901,0.71,163.12,163.11,43.3]
[1754448730782,9.18107618,163.12,163.11,43.3]
[1754448730986,19.41827661,163.12,163.1,43.36]
[1754448731199,9.18107618,163.11,163.1,43.36]
[1754448731795,9.18107618,163.11,163.1,0.06]
[1754448733117,60.5269587,163.11,163.1,0.06]
[1754448733520,60.66912027,163.11,163.1,0.06]
[1754448733713,60.5269587,163.11,163.1,0.06]
[1754448733899,45.42074313,163.11,163.1,0.06]
[1754448734222,39.28991118,163.11,163.1,0.06]
[1754448737608,30.818835,163.11,163.1,0.06]
[1754448737910,45.42074313,163.11,163.1,0.06]
[1754448738802,60.5269587,163.11,163.1,0.06]
[1754448739007,65.69196214,163.11,163.1,0.06]
[1754448740006,65.83412371,163.11,163.1,0.06]
[1754448740228,43.14019645,163.11,163.1,0.06]
[1754448740410,49.57729175,163.09,163.08,0.06]
[1754448740715,53.68612675,163.09,163.08,0.06]
[1754448740920,54.39612675,163.09,163.08,0.06]
[1754448741512,39.28991118,163.09,163.08,0.06]
[1754448742701,45.42149496,163.09,163.08,0.06]
[1754448746230,60.6698721,163.09,163.08,0.06]
[1754448748703,66.8040471,163.09,163.08,0.06]
[1754448748929,66.66188553,163.09,163.08,0.06]
[1754448749113,51.55566996,163.09,163.08,0.06]
[1754448749316,45.42149496,163.09,163.08,0.06]
[1754448749923,60.6698721,163.09,163.08,0.06]
[1754448750425,79.08395668,163.09,163.08,0.06]
[1754448753222,59.81050011,163.09,163.08,0.06]
[1754448753648,78.22953311,163.09,163.08,0.06]
[1754448754430,78.91953311,163.09,163.08,0.06]
[1754448755357,60.50050011,163.09,163.08,0.06]
[1754448755528,66.63465911,163.09,163.08,0.06]
[1754448755725,50.83844354,163.09,163.08,0.06]
[1754448755933,40.60265996,163.09,163.08,0.06]
[1754448756532,44.70006298,163.09,163.08,0.06]
[1754448756956,40.60265996,163.09,163.08,0.06]
[1754448757143,44.70013221,163.09,163.08,0.06]
[1754448757641,44.70013957,163.09,163.08,0.06]
[1754448760029,45.34013957,163.09,163.08,0.06]
[1754448761760,51.47369657,163.09,163.08,0.06]
[1754448762163,44.70013957,163.09,163.08,0.06]
[1754448763749,44.70013957,163.09,163.08,0.75]
[1754448764232,38.56855579,163.09,163.08,0.75]
[1754448764552,44.70013957,163.09,163.08,0.75]
[1754448764740,38.56855579,163.09,163.08,0.75]
[1754448766061,38.56855579,163.09,163.08,0.06]
[1754448766988,44.70013957,163.09,163.08,0.06]
[1754448767494,36.22906339,163.09,163.08,0.06]
[1754448767653,44.70013957,163.09,163.08,0.06]
[1754448768762,38.56855579,163.09,163.08,0.75]
[1754448769855,38.58305088,163.09,163.08,0.75]
[1754448770183,38.58305088,163.09,163.08,0.06]
[1754448770960,45.40463466,163.09,163.08,0.06]
[1754448772181,36.24355848,163.09,163.08,0.06]
[1754448772605,44.71463466,163.09,163.08,0.06]
[1754448773088,38.58305088,163.09,163.08,0.75]
[1754448773492,43.72301925,163.09,163.08,0.75]
[1754448774391,43.72301925,163.09,163.08,0.06]
[1754448774702,44.71463466,163.09,163.06,0.75]
[1754448774910,9.27151856,163.08,163.06,0.75]
[1754448775073,4.1119747,163.07,163.06,0.75]
[1754448776499,9.27151856,163.07,163.06,0.75]
[1754448777289,4.1119747,163.07,163.06,0.75]
[1754448777498,9.27151856,163.07,163.06,0.75]
[1754448777899,4.1119747,163.07,163.06,0.75]
[1754448778286,9.27151856,163.07,163.06,0.75]
[1754448778904,4.1119747,163.07,163.06,0.75]
[1754448780683,13.22305088,163.07,163.06,0.06]
[1754448781001,4.1119747,163.07,163.06,0.06]
[1754448781507,9.27151856,163.07,163.06,0.06]
[1754448781922,24.51493054,163.07,163.06,0.06]
[1754448782417,19.35538668,163.07,163.06,0.06]
[1754448782827,12.58305088,163.07,163.06,0.06]
[1754448783034,4.1119747,163.07,163.06,0.06]
[1754448783203,12.58305088,163.07,163.06,0.06]
[1754448784228,4.1119747,163.07,163.06,0.06]
[1754448784399,12.58305088,163.07,163.06,0.06]
[1754448787020,9.28147398,163.07,163.06,0.74]
[1754448787726,4.1119747,163.07,163.06,0.74]
[1754448788524,9.28147398,163.07,163.06,0.74]
[1754448790328,4.1119747,163.07,163.06,0.74]
[1754448793518,9.28147398,163.07,163.06,0.74]
[1754448794541,9.28147398,163.07,163.06,6.87271188]
[1754448794739,4.1119747,163.07,163.06,6.87271188]
[1754448794942,9.28147398,163.07,163.06,0.74]
[1754448795125,9.28147398,163.07,163.06,43.9]
[1754448795330,9.28147398,163.07,163.06,50.03271188]
[1754448795833,9.28147398,163.07,163.06,43.9]
[1754448797344,9.28147398,163.07,163.06,43.22]
[1754448799223,9.95147398,163.07,163.06,43.22]
[1754448800432,9.28147398,163.07,163.06,43.22]
[1754448801856,24.55488596,163.07,163.06,0.06]
[1754448802155,24.55488596,163.07,163.03,43.12]
[1754448802156,26.27301324,163.07,163.03,43.12]
[1754448802327,13.64391714,163.05,163.03,43.12]
[1754448802535,4.1119747,163.04,163.03,43.12]
[1754448802921,13.25305088,163.04,163.01,22.82334064]
[1754448803164,8.47107618,163.02,163.01,65.94334064]
[1754448803367,4.1119747,163.02,163.01,65.94334064]
[1754448803725,12.58305088,163.02,163.01,65.94334064]
[1754448803919,17.75655091,163.02,163.0,0.06]
[1754448804231,13.64457621,163.03,163.01,43.8]
[1754448804445,4.13508392,163.02,163.01,43.12]
[1754448805153,4.13508392,163.02,163.01,43.8]
[1754448805530,4.13508392,163.02,163.01,49.93459296]
[1754448805933,4.13508392,163.02,163.01,43.8]
[1754448808048,4.13508392,163.02,163.01,43.82]
[1754448810126,4.13508392,163.02,163.01,49.95459296]
[1754448810958,4.13508392,163.02,163.01,43.82]
[1754448811179,4.13508392,163.02,163.01,43.14]
[1754448811328,4.80508392,163.02,163.01,43.14]
[1754448811529,24.58387679,163.02,163.0,0.06]
[1754448811746,19.41075306,163.01,163.0,0.06]
[1754448812157,24.58425309,163.01,163.0,0.06]
[1754448813337,4.13508392,163.01,163.0,0.06]
[1754448813537,12.6061601,163.01,163.0,0.06]
[1754448814256,4.13508392,163.01,163.0,0.06]
[1754448814474,4.13508392,163.01,163.0,43.2]
[1754448815533,12.6061601,163.01,163.0,43.2]
[1754448818663,4.13508392,163.01,163.0,43.89]
[1754448821260,4.13508392,163.01,163.0,43.2]
[1754448821461,4.13508392,163.01,163.0,43.89]
[1754448821678,4.13508392,163.01,163.0,58.4960455]
[1754448821862,4.13508392,163.02,163.0,58.4960455]
[1754448822065,4.12184095,163.05,163.01,9.16107618]
[1754448822263,4.12184095,163.04,163.02,51.61107618]
[1754448822563,4.12184095,163.03,163.02,57.74529284]
[1754448823168,4.12184095,163.03,163.02,58.43529284]
[1754448823546,4.12184095,163.03,163.02,52.30107618]
[1754448823866,4.12184095,163.03,163.02,43.83]
[1754448827575,4.12184095,163.03,163.02,49.96421666]
[1754448827875,4.12184095,163.03,163.02,58.43529284]
[1754448828172,4.12184095,163.05,163.02,58.43529284]
[1754448828384,4.12184095,163.04,163.03,9.16107618]
[1754448830164,4.12184095,163.04,163.03,15.29491657]
[1754448830773,4.12184095,163.04,163.02,146.84521689]
[1754448830953,9.61999961,163.06,163.03,8.47107618]
[1754448831147,4.122762,163.05,163.04,43.14]
[1754448831967,4.12267711,163.05,163.04,43.14]
[1754448833650,13.28375329,163.05,163.04,43.14]
[1754448833857,18.43709968,163.05,163.03,43.12]
[1754448834071,4.81267711,163.04,163.03,43.12]
[1754448834661,13.28375329,163.04,163.02,89.09999999]
[1754448834984,18.43924849,163.03,163.02,89.09999999]
[1754448835190,18.43924849,163.03,163.01,43.12]
[1754448835353,4.81267711,163.02,163.01,43.12]
[1754448835659,4.81267711,163.02,163.0,43.18]
[1754448835660,18.43924849,163.02,163.0,43.18]
[1754448835850,13.28375329,163.01,163.0,43.18]
[1754448836280,4.12267711,163.01,163.0,0.06]
[1754448837179,4.12267711,163.01,163.0,0.75]
[1754448837354,4.12267711,163.01,163.0,0.06]
[1754448839265,13.28375329,163.01,163.0,0.06]
[1754448839586,10.94727007,163.01,163.0,0.06]
[1754448839882,19.41834625,163.01,163.0,0.06]
[1754448840581,13.28375329,163.01,163.0,0.06]
[1754448842084,12.59375329,163.01,163.0,0.06]
[1754448842485,4.12267711,163.01,163.0,0.06]
[1754448843382,13.28375329,163.01,163.0,0.06]
[1754448843583,19.41834625,163.01,163.0,0.06]
[1754448844273,10.94727007,163.01,163.0,0.06]
[1754448844480,19.41834625,163.01,163.0,0.06]
[1754448845864,15.10621557,163.0,162.99,0.06]
[1754448846062,28.55213043,163.0,162.99,0.06]
[1754448846265,28.40996886,163.0,162.99,0.06]
[1754448847090,35.29759542,163.0,162.99,0.06]
[1754448847297,34.54493818,163.0,162.99,0.06]
[1754448847665,34.54493818,163.0,162.97,0.06]
[1754448847666,41.10621557,162.98,162.97,0.06]
[1754448847896,15.24837714,162.97,162.96,0.06]
[1754448848087,35.43281236,162.97,162.96,0.06]
[1754448849262,41.56891102,162.97,162.95,0.06]
[1754448849460,28.40996886,162.96,162.95,0.06]
[1754448849903,28.40996886,162.96,162.93,0.06]
[1754448849904,26.0,162.94,162.93,0.06]
[1754448850092,81.73375329,162.94,162.93,0.06]
[1754448850298,82.44375329,162.94,162.93,0.06]
[1754448850470,38.59375329,162.94,162.93,0.06]
[1754448851295,45.44098171,162.94,162.93,0.06]
[1754448851587,44.73098171,162.94,162.93,0.06]
[1754448852178,30.12267711,162.94,162.93,0.06]
[1754448852496,38.59375329,162.94,162.93,0.06]
[1754448852989,60.54719728,162.94,162.93,0.06]
[1754448854387,53.69996886,162.94,162.93,0.06]